[Event "Dalheimers Hus Rapid Open"]
[Site "Dalheimers Hus, Slottsskogsgatan 12, Gothenburg, Sweden"]
[Date "2024.04.14"]
[Round "3.10"]
[White "Ottgard, Andreas"]
[Black "Mohammadi, Amir"]
[Result "0-1"]
[TimeControl "15 minutes + 5 seconds per move from move one."]
[WhiteFideId "1730592"]
[BlackFideId "1705890"]
[WhiteElo "1869"]
[BlackElo "2275"]

1. c4 {[%clk 00:15:08]} {[%emt 00:00:02]} f5 {[%clk 00:15:04]} {[%emt
00:00:07]} 2. g3 {[%clk 00:15:10]} {[%emt 00:00:03]} Nf6 {[%clk 00:15:08]} 3.
Bg2 {[%clk 00:15:07]} {[%emt 00:00:07]} e6 {[%clk 00:15:12]} {[%emt 00:00:02]}
4. Nc3 {[%clk 00:15:07]} {[%emt 00:00:05]} d5 {[%clk 00:15:14]} {[%emt
00:00:03]} 5. Nf3 {[%clk 00:14:21]} {[%emt 00:00:51]} d4 {[%clk 00:15:01]}
{[%emt 00:00:18]} 6. Nb5 {[%clk 00:13:42]} {[%emt 00:00:44]} c5 {[%clk
00:14:45]} {[%emt 00:00:21]} 7. e3 {[%clk 00:13:22]} {[%emt 00:00:25]} d3
{[%clk 00:12:39]} {[%emt 00:02:11]} 8. Ne5 {[%clk 00:12:09]} {[%emt 00:01:18]}
Be7 {[%clk 00:11:52]} {[%emt 00:00:51]} 9. Qb3 {[%clk 00:11:51]} {[%emt
00:00:24]} a6 {[%clk 00:11:53]} {[%emt 00:00:04]} 10. Na3 {[%clk 00:11:29]}
{[%emt 00:00:26]} O-O {[%clk 00:11:42]} {[%emt 00:00:17]} 11. O-O {[%clk
00:09:56]} {[%emt 00:01:37]} Qc7 {[%clk 00:11:11]} {[%emt 00:00:36]} 12. Nxd3
{[%clk 00:09:56]} {[%emt 00:00:05]} Nc6 {[%clk 00:11:15]} {[%emt 00:00:02]} 13.
Nf4 {[%clk 00:09:24]} {[%emt 00:00:36]} g5 {[%clk 00:10:43]} {[%emt 00:00:37]}
14. Ne2 {[%clk 00:09:18]} {[%emt 00:00:11]} Bd7 {[%clk 00:09:35]} {[%emt
00:01:13]} 15. d4 {[%clk 00:09:02]} {[%emt 00:00:22]} Rad8 {[%clk 00:08:43]}
{[%emt 00:00:57]} 16. d5 {[%clk 00:08:01]} {[%emt 00:01:05]} Na5 {[%clk
00:07:39]} {[%emt 00:01:10]} 17. Qc2 {[%clk 00:07:33]} {[%emt 00:00:32]} h6
{[%clk 00:07:11]} {[%emt 00:00:33]} 18. b3 {[%clk 00:07:23]} {[%emt 00:00:15]}
b6 {[%clk 00:06:41]} {[%emt 00:00:36]} 19. Bb2 {[%clk 00:07:25]} {[%emt
00:00:03]} Nb7 {[%clk 00:06:45]} 20. Rad1 {[%clk 00:06:49]} {[%emt 00:00:40]}
Nd6 {[%clk 00:06:28]} {[%emt 00:00:23]} 21. dxe6 {[%clk 00:05:55]} {[%emt
00:00:58]} Bxe6 {[%clk 00:06:30]} {[%emt 00:00:03]} 22. Nb1 {[%clk 00:05:47]}
{[%emt 00:00:14]} Nf7 {[%clk 00:05:04]} {[%emt 00:01:30]} 23. Nbc3 {[%clk
00:04:59]} {[%emt 00:00:54]} Bd6 {[%clk 00:03:36]} {[%emt 00:01:33]} 24. e4
{[%clk 00:04:52]} {[%emt 00:00:12]} f4 {[%clk 00:02:52]} {[%emt 00:00:49]} 25.
Nd5 {[%clk 00:04:06]} {[%emt 00:00:50]} Bxd5 {[%clk 00:02:49]} {[%emt
00:00:08]} 26. exd5 {[%clk 00:03:52]} {[%emt 00:00:20]} Ne5 {[%clk 00:02:41]}
{[%emt 00:00:13]} 27. gxf4 {[%clk 00:02:39]} {[%emt 00:01:17]} gxf4 {[%clk
00:02:45]} {[%emt 00:00:02]} 28. Nxf4 {[%clk 00:02:42]} {[%emt 00:00:01]} Qg7
{[%clk 00:02:31]} {[%emt 00:00:19]} 29. Kh1 {[%clk 00:01:52]} {[%emt 00:00:55]}
Nfg4 {[%clk 00:01:39]} {[%emt 00:00:57]} 30. Ne6 {[%clk 00:01:43]} {[%emt
00:00:14]} Qf6 {[%clk 00:01:38]} {[%emt 00:00:06]} 31. f4 {[%clk 00:01:31]}
{[%emt 00:00:18]} Qh4 {[%clk 00:01:34]} {[%emt 00:00:09]} 32. Be4 {[%clk
00:01:29]} {[%emt 00:00:07]} Ne3 {[%clk 00:00:36]} {[%emt 00:01:03]} 33. Rg1+
{[%clk 00:01:20]} {[%emt 00:00:14]} N5g4 {[%clk 00:00:30]} {[%emt 00:00:11]} 34.
Bh7+ {[%clk 00:01:14]} {[%emt 00:00:11]} Kf7 {[%emt 00:00:01]} 35. Qg6+ {[%clk
00:01:16]} {[%emt 00:00:02]} Ke7 {[%clk 00:00:39]} {[%emt 00:00:01]} 36. Rd2
{[%clk 00:00:35]} {[%emt 00:00:46]} Kd7 {[%clk 00:00:33]} {[%emt 00:00:11]} 37.
Qg7+ {[%clk 00:00:20]} {[%emt 00:00:19]} Be7 {[%clk 00:00:32]} {[%emt
00:00:07]} 38. Nxd8 {[%clk 00:00:16]} {[%emt 00:00:08]} Nf2+ {[%clk 00:00:26]}
{[%emt 00:00:11]} 39. Rxf2 {[%clk 00:00:16]} {[%emt 00:00:05]} Qxf2 {[%clk
00:00:31]} 40. Be4 {[%clk 00:00:09]} {[%emt 00:00:12]} Rxd8 {[%clk 00:00:32]}
{[%emt 00:00:04]} 41. Qg3 {[%clk 00:00:11]} {[%emt 00:00:03]} Qe2 {[%clk
00:00:30]} {[%emt 00:00:06]} 42. Bf5+ {[%clk 00:00:12]} {[%emt 00:00:05]} Nxf5
{[%clk 00:00:33]} {[%emt 00:00:02]} 43. Qh3 {[%clk 00:00:13]} {[%emt 00:00:04]}
Qe4+ {[%clk 00:00:33]} {[%emt 00:00:05]} 44. Rg2 {[%emt 00:00:05]} Rg8 {[%clk
00:00:35]} 45. Be5 {[%clk 00:00:08]} {[%emt 00:00:12]} Qe1+ {[%clk 00:00:36]}
{[%emt 00:00:05]} 0-1

[Event "Dalheimers Hus Rapid Open"]
[Site "Dalheimers Hus, Slottsskogsgatan 12, Gothenburg, Sweden"]
[Date "2024.04.14"]
[Round "3.11"]
[White "Storme, Isak"]
[Black "Robertsson, Klas"]
[Result "1-0"]
[TimeControl "15 minutes + 5 seconds per move from move one."]
[WhiteTitle "IM"]
[WhiteFideId "1728113"]
[BlackFideId "1737821"]
[WhiteElo "2352"]
[BlackElo "1919"]

1. d4 {[%clk 00:15:08]} {[%emt 00:00:02]} b6 {[%clk 00:15:06]} {[%emt
00:00:05]} 2. e4 {[%clk 00:15:10]} {[%emt 00:00:02]} Bb7 {[%clk 00:15:10]}
{[%emt 00:00:02]} 3. Nc3 {[%clk 00:15:13]} {[%emt 00:00:01]} e6 {[%clk
00:15:13]} {[%emt 00:00:03]} 4. a3 {[%clk 00:15:04]} {[%emt 00:00:13]} g6
{[%clk 00:14:45]} {[%emt 00:00:34]} 5. h4 {[%clk 00:14:47]} {[%emt 00:00:22]}
h6 {[%clk 00:14:48]} {[%emt 00:00:02]} 6. h5 {[%clk 00:14:31]} {[%emt
00:00:21]} g5 {[%clk 00:14:52]} {[%emt 00:00:02]} 7. f4 {[%clk 00:14:25]}
{[%emt 00:00:09]} gxf4 {[%clk 00:14:48]} {[%emt 00:00:09]} 8. Bxf4 {[%clk
00:14:27]} {[%emt 00:00:03]} Nf6 {[%clk 00:14:36]} {[%emt 00:00:18]} 9. e5
{[%clk 00:13:58]} {[%emt 00:00:34]} Nd5 {[%clk 00:14:38]} {[%emt 00:00:03]} 10.
Nxd5 {[%clk 00:13:57]} {[%emt 00:00:05]} Bxd5 {[%clk 00:14:41]} {[%emt
00:00:02]} 11. Qg4 {[%clk 00:12:42]} {[%emt 00:01:21]} Be4 {[%clk 00:14:13]}
{[%emt 00:00:33]} 12. O-O-O {[%clk 00:12:12]} {[%emt 00:00:34]} Bf5 {[%clk
00:14:14]} {[%emt 00:00:05]} 13. Qf3 {[%clk 00:12:03]} {[%emt 00:00:13]} d5
{[%clk 00:12:34]} {[%emt 00:01:46]} 14. exd6 {[%clk 00:11:46]} {[%emt
00:00:22]} Bxd6 {[%clk 00:12:34]} {[%emt 00:00:05]} 15. Bxd6 {[%clk 00:10:57]}
{[%emt 00:00:54]} Qxd6 {[%clk 00:12:21]} {[%emt 00:00:17]} 16. Qxa8 {[%clk
00:10:51]} {[%emt 00:00:11]} c6 {[%clk 00:12:24]} {[%emt 00:00:03]} 17. Qxa7
{[%clk 00:10:44]} {[%emt 00:00:11]} O-O {[%clk 00:12:17]} {[%emt 00:00:13]} 18.
Qxb6 {[%clk 00:10:15]} {[%emt 00:00:33]} Nd7 {[%clk 00:12:19]} {[%emt
00:00:04]} 19. Qb4 {[%clk 00:10:18]} {[%emt 00:00:01]} Qf4+ {[%clk 00:12:06]}
{[%emt 00:00:19]} 20. Qd2 {[%clk 00:10:20]} {[%emt 00:00:03]} Qxd2+ {[%clk
00:10:17]} {[%emt 00:01:54]} 21. Rxd2 {[%clk 00:10:21]} {[%emt 00:00:03]} c5
{[%clk 00:10:20]} {[%emt 00:00:02]} 22. Nf3 {[%clk 00:10:24]} {[%emt 00:00:02]}
Rc8 {[%clk 00:10:09]} {[%emt 00:00:17]} 23. Bd3 {[%clk 00:10:23]} {[%emt
00:00:05]} 1-0

[Event "Dalheimers Hus Rapid Open"]
[Site "Dalheimers Hus, Slottsskogsgatan 12, Gothenburg, Sweden"]
[Date "2024.04.14"]
[Round "4.1"]
[White "Rydstrom, Tom"]
[Black "Johansson, Linus"]
[Result "0-1"]
[TimeControl "15 minutes + 5 seconds per move from move one."]
[WhiteTitle "FM"]
[BlackTitle "IM"]
[WhiteFideId "1714830"]
[BlackFideId "1711113"]
[WhiteElo "2313"]
[BlackElo "2427"]

1. e4 {[%clk 00:15:09]} {[%emt 00:00:01]} c5 {[%clk 00:15:09]} {[%emt
00:00:02]} 2. Nf3 {[%clk 00:15:12]} {[%emt 00:00:02]} d6 {[%clk 00:15:13]} 3.
d4 {[%clk 00:15:17]} cxd4 {[%clk 00:15:18]} 4. Nxd4 {[%clk 00:15:21]} {[%emt
00:00:01]} Nf6 {[%clk 00:15:22]} 5. Nc3 {[%clk 00:15:25]} a6 {[%clk 00:15:26]}
6. Bg5 {[%clk 00:15:24]} {[%emt 00:00:06]} e6 {[%clk 00:15:29]} {[%emt
00:00:02]} 7. Qf3 {[%clk 00:15:12]} {[%emt 00:00:17]} Nbd7 {[%clk 00:15:25]}
{[%emt 00:00:09]} 8. Be2 {[%clk 00:15:12]} {[%emt 00:00:05]} Be7 {[%clk
00:15:20]} {[%emt 00:00:10]} 9. Qg3 {[%clk 00:14:36]} {[%emt 00:00:40]} Qc7
{[%clk 00:14:20]} {[%emt 00:01:06]} 10. f4 {[%clk 00:14:02]} {[%emt 00:00:39]}
b5 {[%clk 00:14:05]} {[%emt 00:00:20]} 11. a3 {[%clk 00:12:45]} {[%emt
00:01:22]} Bb7 {[%clk 00:14:06]} {[%emt 00:00:05]} 12. Bf3 {[%clk 00:12:45]}
{[%emt 00:00:04]} h6 {[%clk 00:12:06]} {[%emt 00:02:05]} 13. Bxf6 {[%clk
00:12:48]} {[%emt 00:00:03]} Bxf6 {[%clk 00:12:03]} {[%emt 00:00:08]} 14. O-O-O
{[%clk 00:12:02]} {[%emt 00:00:51]} O-O {[%clk 00:11:47]} {[%emt 00:00:20]} 15.
Rhe1 {[%clk 00:12:04]} {[%emt 00:00:03]} Rfc8 {[%clk 00:11:12]} {[%emt
00:00:41]} 16. e5 {[%clk 00:08:16]} {[%emt 00:03:53]} dxe5 {[%clk 00:10:48]}
{[%emt 00:00:29]} 17. fxe5 {[%clk 00:08:20]} Bxf3 {[%clk 00:09:41]} {[%emt
00:01:11]} 18. Nxf3 {[%clk 00:07:43]} {[%emt 00:00:42]} Be7 {[%clk 00:09:45]}
{[%emt 00:00:01]} 19. Re3 {[%clk 00:07:37]} {[%emt 00:00:12]} Nb6 {[%clk
00:09:25]} {[%emt 00:00:24]} 20. Red3 {[%clk 00:06:40]} {[%emt 00:01:01]} a5
{[%clk 00:09:19]} {[%emt 00:00:12]} 21. Qf2 {[%clk 00:05:54]} {[%emt 00:00:50]}
b4 {[%clk 00:09:19]} {[%emt 00:00:05]} 22. Nb5 {[%clk 00:04:06]} {[%emt
00:01:53]} Qc6 {[%clk 00:06:48]} {[%emt 00:02:36]} 23. Nd6 {[%clk 00:03:55]}
{[%emt 00:00:16]} bxa3 {[%clk 00:06:32]} {[%emt 00:00:22]} 24. Rxa3 {[%clk
00:03:48]} {[%emt 00:00:12]} Nc4 {[%clk 00:06:11]} {[%emt 00:00:25]} 25. Nxc8
{[%clk 00:02:27]} {[%emt 00:01:26]} Bxa3 {[%clk 00:06:13]} {[%emt 00:00:03]} 26.
Rd8+ {[%clk 00:02:21]} {[%emt 00:00:11]} Kh7 {[%clk 00:06:08]} {[%emt
00:00:10]} 27. bxa3 {[%clk 00:00:30]} {[%emt 00:01:56]} Rxc8 {[%clk 00:06:00]}
{[%emt 00:00:13]} 28. Rxc8 {[%clk 00:00:33]} {[%emt 00:00:02]} Qxc8 {[%clk
00:06:04]} {[%emt 00:00:01]} 29. Qd4 {[%clk 00:00:37]} g6 {[%clk 00:05:36]}
{[%emt 00:00:33]} 30. Qc3 {[%clk 00:00:41]} Qc5 {[%clk 00:05:22]} {[%emt
00:00:19]} 31. a4 {[%clk 00:00:32]} {[%emt 00:00:14]} Qd5 {[%clk 00:04:44]}
{[%emt 00:00:42]} 32. Kb1 {[%clk 00:00:31]} {[%emt 00:00:06]} Kg7 {[%clk
00:04:34]} {[%emt 00:00:16]} 33. h3 {[%clk 00:00:16]} {[%emt 00:00:19]} g5
{[%clk 00:04:29]} {[%emt 00:00:10]} 34. Qd4 {[%clk 00:00:17]} {[%emt 00:00:05]}
Qb7+ {[%clk 00:04:13]} {[%emt 00:00:21]} 35. Kc1 {[%clk 00:00:11]} {[%emt
00:00:10]} Qb4 {[%clk 00:04:07]} {[%emt 00:00:11]} 36. Qa1 {[%clk 00:00:08]}
{[%emt 00:00:09]} h5 {[%clk 00:03:58]} {[%emt 00:00:13]} 37. c3 {[%clk
00:00:12]} Qc5 {[%clk 00:03:56]} {[%emt 00:00:07]} 38. Qa2 {[%clk 00:00:11]}
{[%emt 00:00:07]} g4 {[%clk 00:03:45]} {[%emt 00:00:16]} 39. hxg4 {[%clk
00:00:14]} hxg4 {[%clk 00:03:49]} 40. Nd4 {[%clk 00:00:08]} {[%emt 00:00:12]}
Nxe5 {[%clk 00:03:49]} {[%emt 00:00:05]} 41. Qd2 {[%clk 00:00:12]} Nc4 {[%clk
00:03:01]} {[%emt 00:00:54]} 42. Qe2 {[%clk 00:00:15]} {[%emt 00:00:02]} Qa3+
{[%clk 00:02:57]} {[%emt 00:00:09]} 43. Kb1 {[%clk 00:00:19]} {[%emt 00:00:01]}
Qxc3 {[%clk 00:02:52]} {[%emt 00:00:09]} 44. Qxg4+ {[%clk 00:00:08]} {[%emt
00:00:16]} Kf8 {[%clk 00:02:56]} 45. Nxe6+ {[%clk 00:00:07]} {[%emt 00:00:06]}
Ke7 {[%clk 00:02:46]} {[%emt 00:00:14]} 46. Qg5+ {[%clk 00:00:06]} {[%emt
00:00:06]} Kxe6 {[%clk 00:02:46]} {[%emt 00:00:06]} 47. Qg4+ {[%clk 00:00:11]}
Kd6 {[%clk 00:02:34]} {[%emt 00:00:17]} 48. Qf4+ {[%clk 00:00:11]} {[%emt
00:00:05]} Ne5 {[%clk 00:02:31]} {[%emt 00:00:08]} 49. Qf6+ {[%clk 00:00:14]}
{[%emt 00:00:02]} Kd7 {[%clk 00:02:25]} {[%emt 00:00:12]} 50. Qf5+ {[%clk
00:00:15]} {[%emt 00:00:04]} Ke7 {[%clk 00:02:28]} {[%emt 00:00:02]} 51. Qg5+
{[%clk 00:00:14]} {[%emt 00:00:07]} Ke6 {[%clk 00:02:29]} {[%emt 00:00:04]} 52.
Qh6+ {[%clk 00:00:17]} {[%emt 00:00:01]} f6 {[%clk 00:02:33]} {[%emt 00:00:02]}
53. Qh3+ {[%clk 00:00:21]} Qxh3 {[%clk 00:02:30]} {[%emt 00:00:09]} 0-1

[Event "Dalheimers Hus Rapid Open"]
[Site "Dalheimers Hus, Slottsskogsgatan 12, Gothenburg, Sweden"]
[Date "2024.04.14"]
[Round "4.2"]
[White "Hellers, Ferdinand"]
[Black "Olsson, William"]
[Result "1/2-1/2"]
[TimeControl "15 minutes + 5 seconds per move from move one."]
[WhiteTitle "GM"]
[BlackTitle "FM"]
[WhiteFideId "1700022"]
[BlackFideId "1741721"]
[WhiteElo "2410"]
[BlackElo "2159"]

1. e4 {[%clk 00:15:05]} {[%emt 00:00:04]} e5 {[%clk 00:15:09]} {[%emt
00:00:03]} 2. Nf3 {[%clk 00:15:05]} {[%emt 00:00:04]} Nc6 {[%clk 00:15:11]}
{[%emt 00:00:04]} 3. Bb5 {[%clk 00:15:07]} {[%emt 00:00:03]} a6 {[%clk
00:15:02]} {[%emt 00:00:15]} 4. Ba4 {[%clk 00:15:09]} {[%emt 00:00:02]} Nf6
{[%clk 00:15:04]} {[%emt 00:00:02]} 5. O-O {[%clk 00:15:09]} {[%emt 00:00:04]}
Nxe4 {[%clk 00:15:05]} {[%emt 00:00:05]} 6. d4 {[%clk 00:15:07]} {[%emt
00:00:07]} b5 {[%clk 00:15:08]} {[%emt 00:00:02]} 7. Bb3 {[%clk 00:15:10]}
{[%emt 00:00:02]} d5 {[%clk 00:15:12]} {[%emt 00:00:03]} 8. dxe5 {[%clk
00:15:09]} {[%emt 00:00:03]} Be6 {[%clk 00:15:09]} {[%emt 00:00:09]} 9. Nbd2
{[%clk 00:15:04]} {[%emt 00:00:10]} Be7 {[%clk 00:12:56]} {[%emt 00:02:19]} 10.
Nxe4 {[%clk 00:13:08]} {[%emt 00:02:00]} dxe4 {[%clk 00:12:58]} {[%emt
00:00:04]} 11. Bxe6 {[%clk 00:13:06]} {[%emt 00:00:07]} fxe6 {[%clk 00:12:11]}
{[%emt 00:00:53]} 12. Ng5 {[%clk 00:12:41]} {[%emt 00:00:28]} Bxg5 {[%clk
00:10:29]} {[%emt 00:01:48]} 13. Qh5+ {[%clk 00:12:40]} {[%emt 00:00:06]} g6
{[%clk 00:10:31]} {[%emt 00:00:03]} 14. Qxg5 {[%clk 00:12:41]} {[%emt
00:00:03]} O-O {[%clk 00:09:54]} {[%emt 00:00:43]} 15. Qg4 {[%clk 00:09:59]}
{[%emt 00:02:47]} Qd5 {[%clk 00:09:38]} {[%emt 00:00:22]} 16. Bh6 {[%clk
00:09:48]} {[%emt 00:00:14]} Nxe5 {[%clk 00:09:24]} {[%emt 00:00:21]} 17. Qg3
{[%clk 00:09:03]} {[%emt 00:00:50]} Rf5 {[%clk 00:09:19]} {[%emt 00:00:09]} 18.
b3 {[%clk 00:06:59]} {[%emt 00:02:09]} Rd8 {[%clk 00:08:13]} {[%emt 00:01:12]}
19. Rae1 {[%clk 00:06:07]} {[%emt 00:00:57]} Nf7 {[%clk 00:08:05]} {[%emt
00:00:12]} 20. Bc1 {[%clk 00:05:48]} {[%emt 00:00:25]} Qc6 {[%clk 00:08:05]}
{[%emt 00:00:05]} 21. Re2 {[%clk 00:05:15]} {[%emt 00:00:37]} Rfd5 22. Qe3
{[%clk 00:05:15]} 1/2-1/2

[Event "Dalheimers Hus Rapid Open"]
[Site "Dalheimers Hus, Slottsskogsgatan 12, Gothenburg, Sweden"]
[Date "2024.04.14"]
[Round "4.3"]
[White "Svensson, Bengt"]
[Black "Cramling, Pia"]
[Result "1/2-1/2"]
[TimeControl "15 minutes + 5 seconds per move from move one."]
[WhiteTitle "IM"]
[BlackTitle "GM"]
[WhiteFideId "1700200"]
[BlackFideId "1700030"]
[WhiteElo "2281"]
[BlackElo "2377"]

1. e4 {[%clk 00:15:08]} c5 {[%clk 00:15:09]} {[%emt 00:00:02]} 2. Nf3 {[%clk
00:15:07]} {[%emt 00:00:06]} Nc6 {[%clk 00:15:11]} {[%emt 00:00:03]} 3. d4
{[%clk 00:14:59]} {[%emt 00:00:14]} cxd4 {[%clk 00:15:13]} {[%emt 00:00:02]} 4.
Nxd4 {[%clk 00:15:03]} {[%emt 00:00:02]} e6 {[%clk 00:15:14]} {[%emt 00:00:04]}
5. Nc3 {[%clk 00:14:38]} {[%emt 00:00:30]} a6 {[%clk 00:15:06]} {[%emt
00:00:11]} 6. Nxc6 {[%clk 00:13:49]} {[%emt 00:00:55]} bxc6 {[%clk 00:15:09]}
{[%emt 00:00:02]} 7. Bd3 {[%clk 00:13:52]} {[%emt 00:00:02]} d5 {[%clk
00:15:10]} {[%emt 00:00:04]} 8. O-O {[%clk 00:13:47]} {[%emt 00:00:11]} Nf6
{[%clk 00:15:06]} {[%emt 00:00:08]} 9. Re1 {[%clk 00:13:22]} {[%emt 00:00:30]}
Be7 {[%clk 00:14:35]} {[%emt 00:00:35]} 10. e5 {[%clk 00:12:11]} {[%emt
00:01:17]} Nd7 {[%clk 00:14:37]} {[%emt 00:00:02]} 11. Qg4 {[%clk 00:12:07]}
{[%emt 00:00:11]} Kf8 {[%clk 00:14:32]} {[%emt 00:00:09]} 12. Bd2 {[%clk
00:07:47]} {[%emt 00:04:26]} h5 {[%clk 00:12:49]} {[%emt 00:01:48]} 13. Qf3
{[%clk 00:06:42]} {[%emt 00:01:11]} Kg8 {[%clk 00:12:51]} {[%emt 00:00:03]} 14.
Na4 {[%clk 00:06:10]} {[%emt 00:00:38]} Bb7 {[%clk 00:11:41]} {[%emt 00:01:13]}
15. Qe2 {[%clk 00:05:04]} {[%emt 00:01:12]} c5 {[%clk 00:11:08]} {[%emt
00:00:36]} 16. c4 {[%clk 00:04:41]} {[%emt 00:00:29]} d4 {[%clk 00:11:11]}
{[%emt 00:00:02]} 17. Be4 {[%clk 00:04:33]} {[%emt 00:00:14]} Qc7 {[%clk
00:10:22]} {[%emt 00:00:54]} 18. b3 {[%clk 00:04:17]} {[%emt 00:00:21]} a5
{[%clk 00:09:51]} {[%emt 00:00:35]} 19. Bxb7 {[%clk 00:04:14]} {[%emt
00:00:09]} Qxb7 {[%clk 00:09:53]} {[%emt 00:00:02]} 20. Rab1 {[%clk 00:04:03]}
{[%emt 00:00:16]} g6 {[%clk 00:09:30]} {[%emt 00:00:27]} 21. Bf4 {[%clk
00:03:20]} {[%emt 00:00:50]} Kg7 {[%clk 00:08:53]} {[%emt 00:00:41]} 22. Qd2
{[%clk 00:03:10]} {[%emt 00:00:15]} h4 {[%clk 00:07:50]} {[%emt 00:01:07]} 23.
h3 {[%clk 00:02:35]} {[%emt 00:00:41]} Rh5 {[%clk 00:07:44]} {[%emt 00:00:12]}
24. f3 {[%clk 00:02:32]} {[%emt 00:00:08]} Qc7 {[%clk 00:07:01]} {[%emt
00:00:46]} 25. Qe2 {[%clk 00:02:07]} {[%emt 00:00:32]} Rf5 {[%clk 00:06:29]}
{[%emt 00:00:35]} 26. Qe4 {[%clk 00:01:56]} {[%emt 00:00:18]} Rb8 {[%clk
00:06:28]} {[%emt 00:00:02]} 27. Nb2 {[%clk 00:01:49]} {[%emt 00:00:16]} Qb7
{[%clk 00:05:49]} {[%emt 00:00:44]} 28. Qxb7 {[%clk 00:01:44]} {[%emt
00:00:10]} Rxb7 {[%clk 00:05:52]} {[%emt 00:00:01]} 29. Nd3 {[%clk 00:01:47]}
{[%emt 00:00:02]} Rh5 {[%clk 00:05:29]} {[%emt 00:00:28]} 30. Bd2 {[%clk
00:01:45]} {[%emt 00:00:08]} Rh8 {[%clk 00:04:50]} {[%emt 00:00:44]} 31. a4
{[%clk 00:01:19]} {[%emt 00:00:31]} Rhb8 {[%clk 00:04:31]} {[%emt 00:00:23]} 32.
Nc1 {[%clk 00:01:02]} {[%emt 00:00:23]} Bd8 {[%clk 00:04:19]} {[%emt 00:00:16]}
33. f4 {[%clk 00:00:44]} {[%emt 00:00:24]} Nb6 {[%clk 00:03:23]} {[%emt
00:01:01]} 34. Ra1 {[%clk 00:00:45]} {[%emt 00:00:05]} Nc8 {[%clk 00:03:25]}
{[%emt 00:00:03]} 35. Rb1 {[%clk 00:00:34]} {[%emt 00:00:16]} Ne7 {[%clk
00:03:24]} {[%emt 00:00:05]} 36. Kf2 {[%clk 00:00:30]} {[%emt 00:00:10]} Nf5
{[%clk 00:02:53]} {[%emt 00:00:36]} 37. Kf3 {[%clk 00:00:32]} {[%emt 00:00:03]}
d3 {[%clk 00:01:58]} {[%emt 00:00:59]} 38. Ke4 {[%clk 00:00:15]} {[%emt
00:00:22]} Rd7 {[%clk 00:01:50]} {[%emt 00:00:13]} 39. Kf3 {[%clk 00:00:10]}
{[%emt 00:00:11]} Nd4+ {[%clk 00:01:41]} {[%emt 00:00:13]} 40. Kf2 {[%clk
00:00:12]} {[%emt 00:00:04]} Nc2 {[%clk 00:01:23]} {[%emt 00:00:22]} 41. Rd1
{[%clk 00:00:16]} {[%emt 00:00:02]} Bc7 {[%clk 00:01:15]} {[%emt 00:00:12]} 42.
Bc3 {[%clk 00:00:15]} {[%emt 00:00:07]} Rbd8 {[%clk 00:01:15]} {[%emt
00:00:05]} 43. Rd2 {[%clk 00:00:15]} {[%emt 00:00:05]} Kh7 {[%clk 00:00:55]}
{[%emt 00:00:25]} 44. Nxd3 {[%clk 00:00:15]} {[%emt 00:00:05]} Rxd3 {[%clk
00:00:34]} {[%emt 00:00:26]} 45. Rxc2 {[%clk 00:00:19]} g5 {[%clk 00:00:36]}
{[%emt 00:00:03]} 46. fxg5 {[%clk 00:00:19]} {[%emt 00:00:04]} Kg6 {[%clk
00:00:35]} {[%emt 00:00:06]} 47. Ke2 {[%clk 00:00:19]} {[%emt 00:00:05]} Rg3
{[%clk 00:00:37]} {[%emt 00:00:04]} 48. Kf1 {[%clk 00:00:17]} {[%emt 00:00:07]}
Rxg5 {[%clk 00:00:22]} {[%emt 00:00:19]} 49. Re1 {[%clk 00:00:17]} {[%emt
00:00:05]} Rd3 {[%clk 00:00:18]} {[%emt 00:00:10]} 50. Re4 {[%clk 00:00:18]}
{[%emt 00:00:04]} Bd8 {[%clk 00:00:13]} {[%emt 00:00:10]} 51. Be1 {[%clk
00:00:17]} {[%emt 00:00:06]} Rf5+ {[%clk 00:00:15]} {[%emt 00:00:03]} 52. Ke2
{[%clk 00:00:18]} {[%emt 00:00:04]} Rd7 {[%clk 00:00:13]} {[%emt 00:00:06]} 53.
Rd2 {[%clk 00:00:21]} {[%emt 00:00:03]} Rxd2+ {[%clk 00:00:16]} {[%emt
00:00:02]} 54. Bxd2 {[%clk 00:00:24]} {[%emt 00:00:02]} Bc7 {[%clk 00:00:19]}
{[%emt 00:00:02]} 55. Bc3 {[%clk 00:00:27]} {[%emt 00:00:02]} Rg5 {[%clk
00:00:19]} {[%emt 00:00:05]} 56. Rg4 {[%clk 00:00:26]} {[%emt 00:00:06]} Kf5
{[%clk 00:00:17]} {[%emt 00:00:06]} 57. Kf3 {[%clk 00:00:23]} {[%emt 00:00:09]}
Rxg4 {[%clk 00:00:15]} {[%emt 00:00:06]} 58. hxg4+ {[%clk 00:00:28]} Kg6 {[%clk
00:00:19]} 1/2-1/2